bitfinex-derivatives/quotes_ETHF0:USTF0_20250704
["timestamp","ask_amount","ask_price","bid_price","bid_amount"]
[1751605782395,0.77563,2577.7,2577.6,0.77564]
[1751605782600,0.77563,2577.7,2577.5,3.98345]
[1751605782797,0.77563,2577.7,2577.5,6.63236478]
[1751605783097,0.77561,2577.7,2577.6,0.77564]
[1751605783299,0.77561,2577.7,2577.6,2.07144]
[1751605783999,0.77561,2577.7,2577.6,1.2958]
[1751605784400,0.77564,2577.6,2577.5,6.63237478]
[1751605785101,0.77564,2577.7,2577.5,6.63237478]
[1751605785300,0.77564,2577.6,2577.5,6.63237478]
[1751605785802,0.77564,2577.6,2577.5,3.42457478]
[1751605786401,0.77564,2577.6,2577.5,6.63237478]
[1751605786800,0.77564,2577.6,2577.5,3.2078]
[1751605788005,0.77564,2577.6,2577.5,3.98347]
[1751605788201,0.77564,2577.6,2577.5,3.2078]
[1751605788809,0.77564,2577.6,2577.5,3.98347]
[1751605790408,0.77563,2577.7,2577.5,3.2078]
[1751605790610,0.77563,2577.7,2577.5,3.98345]
[1751605790802,1.3158,2577.8,2577.5,5.29225]
[1751605791010,0.77563,2577.7,2577.6,0.77564]
[1751605791515,1.3158,2577.8,2577.5,7.16551478]
[1751605791813,11.86754,2578.0,2577.7,2.64891478]
[1751605792012,11.092,2578.0,2577.9,3.42446478]
[1751605792407,11.092,2578.0,2577.9,4.73326478]
[1751605793009,11.86752,2578.0,2577.9,1.3088]
[1751605794611,11.86752,2578.0,2577.9,2.08435]
[1751605794811,11.092,2578.0,2577.9,2.08435]
[1751605795707,11.86752,2578.0,2577.9,2.08435]
[1751605795913,41.4742,2578.3,2577.9,1.3088]
[1751605796213,0.77544,2578.3,2578.2,5.85671478]
[1751605796414,36.29744,2578.3,2578.2,5.85671478]
[1751605796711,36.29744,2578.3,2578.2,6.55511478]
[1751605797106,36.1788,2578.4,2578.3,0.77543]
[1751605797316,36.9542,2578.4,2578.3,2.07603]
[1751605797508,11.80735,2578.6,2578.3,1.3006]
[1751605797708,11.80735,2578.6,2578.4,4.72489478]
[1751605798115,11.80735,2578.6,2578.5,0.77537]
[1751605798316,11.032,2578.6,2578.5,0.77537]
[1751605798611,0.77537,2578.5,2578.4,1.3006]
[1751605798918,1.46307,2578.5,2578.3,3.42433478]
[1751605799318,0.6877,2578.5,2578.4,0.7754]
[1751605801218,0.6877,2578.5,2578.4,3.42431478]
[1751605803017,0.77542,2578.4,2578.2,3.9062]
[1751605803218,0.77543,2578.3,2578.2,3.9062]
[1751605803419,0.77543,2578.3,2578.2,4.68166]
[1751605803916,1.45142,2578.4,2578.2,4.68166]
[1751605804120,0.676,2578.4,2578.3,0.77543]
[1751605804421,1.4514,2578.4,2578.3,0.77543]
[1751605804617,0.676,2578.4,2578.2,7.33056478]
[1751605804815,1.45141,2578.4,2578.2,7.33056478]
[1751605805114,0.77543,2578.3,2578.2,7.33056478]
[1751605805316,0.77543,2578.3,2578.2,6.55511478]
[1751605805818,0.77554,2578.0,2577.9,3.2078]
[1751605806020,2.64891478,2578.1,2577.7,3.08890944]
[1751605806220,0.6933,2577.9,2577.6,4.62453]
[1751605806518,35.513,2577.9,2577.8,0.77558]
[1751605806715,35.513,2578.0,2577.7,3.96291478]
[1751605806914,35.513,2578.0,2577.9,6.63226478]
[1751605807113,36.28852,2578.0,2577.9,6.63226478]
[1751605807320,35.513,2578.0,2577.9,7.94626478]
[1751605807522,36.28852,2578.0,2577.9,3.2078]
[1751605809124,36.28852,2578.0,2577.9,3.98335]
[1751605809520,36.28852,2578.0,2577.9,3.2078]
[1751605810024,35.513,2578.0,2577.9,3.98335]
[1751605810220,0.6933,2578.2,2577.9,5.85671478]
[1751605810422,35.506,2578.1,2578.0,1.2755]
[1751605810625,35.506,2578.1,2578.0,1.9614]
[1751605811419,36.28149,2578.1,2578.0,2.73691]
[1751605811725,35.506,2578.1,2578.0,2.73691]
[1751605811925,0.77544,2578.3,2578.2,0.77545]
[1751605812218,1.44872,2578.4,2578.2,6.63216478]
[1751605812415,36.27943,2578.3,2578.2,6.63216478]
[1751605812622,36.27943,2578.3,2578.2,5.85671478]
[1751605813024,36.27943,2578.3,2578.2,3.2078]
[1751605813525,36.27943,2578.3,2578.2,3.98326]
[1751605813825,35.504,2578.3,2578.2,6.63217478]
[1751605814224,36.27341,2578.4,2578.3,0.77543]
[1751605814933,0.77543,2578.3,2578.2,6.63216478]
[1751605815233,36.27342,2578.4,2578.3,0.77543]
[1751605815634,35.498,2578.4,2578.3,0.77543]
[1751605816434,36.2734,2578.4,2578.3,0.77543]
[1751605816836,1.3322,2578.5,2578.4,0.7754]
[1751605817032,40.8,2578.9,2578.6,0.77532]
[1751605817033,0.77533,2578.7,2578.6,0.77532]
[1751605817225,2.0758,2578.8,2578.7,0.77531]
[1751605817431,37.5788,2578.8,2578.7,0.77531]
[1751605817835,2.0758,2578.8,2578.7,0.77531]
[1751605818035,37.5788,2578.8,2578.7,0.77531]
[1751605818339,37.57878,2578.8,2578.7,0.77531]
[1751605818534,0.77532,2578.7,2578.6,0.77532]
[1751605818830,1.3005,2578.8,2578.6,2.64891478]
[1751605819135,36.1397,2578.8,2578.7,0.77531]
[1751605819329,36.1397,2578.8,2578.7,2.05891]
[1751605819933,36.91498,2578.8,2578.7,0.77531]
[1751605820437,0.77533,2578.7,2578.6,0.77533]
[1751605820639,1.41153,2578.7,2578.6,0.77533]
[1751605821033,0.6362,2578.7,2578.6,0.77533]
[1751605821536,0.6417,2578.8,2578.7,0.77531]
[1751605822336,1.42777,2579.2,2578.7,1.93827]
[1751605822532,0.6689,2579.0,2578.9,0.77525]
[1751605822733,0.6689,2579.0,2578.9,1.29662694]
[1751605822933,0.6689,2579.0,2578.9,1.97742694]
[1751605823534,0.6689,2579.0,2578.9,1.45605]
[1751605824736,1.44412,2579.0,2578.9,0.77525]
[1751605825136,0.6689,2579.0,2578.9,0.77525]
[1751605825341,1.44412,2579.0,2578.9,0.77525]
[1751605825538,0.6689,2579.0,2578.9,0.77525]
[1751605826038,1.44412,2579.0,2578.9,0.77525]
[1751605826239,0.6689,2579.0,2578.9,0.77525]
[1751605826741,1.44412,2579.0,2578.9,0.77525]
[1751605827042,0.6689,2579.0,2578.9,0.77525]
[1751605827648,0.6526,2579.2,2579.1,0.77519]
[1751605827845,36.814,2579.2,2579.1,0.77519]
[1751605828644,36.1614,2579.2,2579.1,0.77519]
[1751605829546,0.6794,2579.2,2579.1,0.77519]
[1751605830040,0.77524,2579.0,2578.9,0.77523]
[1751605830747,0.6794,2579.2,2578.8,3.98307]
[1751605830748,0.77525,2578.9,2578.8,3.98307]
[1751605830944,0.77524,2579.0,2578.9,0.77524]
[1751605832046,0.77521,2579.1,2579.0,0.77521]
[1751605832441,0.77524,2579.0,2578.9,0.77524]
[1751605833046,0.77521,2579.1,2578.9,0.77524]
[1751605833248,0.77521,2579.1,2579.0,0.77522]
[1751605833442,0.77523,2579.0,2578.9,0.77524]
[1751605834241,0.77525,2578.9,2578.8,3.2078]
[1751605834548,1.45345,2578.9,2578.8,3.2078]
[1751605834845,1.45345,2578.9,2578.5,3.2078]
[1751605834846,0.77534,2578.6,2578.5,3.2078]
[1751605835241,38.12291478,2578.7,2578.2,3.874]
[1751605835436,0.77543,2578.3,2578.2,3.874]
[1751605835642,0.77542,2578.4,2578.2,3.98326]
[1751605835844,2.13432,2578.4,2578.3,0.77543]
[1751605836048,36.8419,2578.4,2578.3,0.77543]
[1751605836242,37.6173,2578.4,2578.3,0.77543]
[1751605836443,37.6173,2578.4,2578.2,3.98324]
[1751605837047,37.6173,2578.4,2578.3,0.77543]
[1751605837248,36.8419,2578.4,2578.3,0.77543]
[1751605837450,0.77543,2578.3,2578.2,3.2078]
[1751605837749,37.61731,2578.4,2578.2,3.98326]
[1751605838450,0.77543,2578.3,2578.2,3.98326]
[1751605839045,0.77543,2578.3,2578.2,3.2078]
[1751605844055,0.77549,2578.1,2578.0,0.6662]
[1751605844258,0.77552,2578.0,2577.9,3.2078]
[1751605845556,1.46622,2578.0,2577.9,3.2078]
[1751605846351,0.6907,2578.0,2577.9,3.2078]
[1751605846557,36.2255,2578.1,2577.9,3.98335]
[1751605846751,36.2255,2578.1,2578.0,2.64891478]
[1751605846954,0.77547,2578.2,2578.0,3.42443478]
[1751605847160,36.22447,2578.2,2578.1,2.13579]
[1751605847558,35.449,2578.2,2578.1,2.13579]
[1751605848163,36.22446,2578.2,2578.1,1.3603]
[1751605848861,36.22446,2578.2,2578.1,2.13579]
[1751605849361,36.22446,2578.2,2578.1,1.3603]
[1751605851462,36.22446,2578.2,2578.1,2.13579]
[1751605851662,0.77546,2578.2,2578.1,2.13579]
[1751605853163,0.77546,2578.2,2578.1,1.3603]
[1751605854958,46.43,2578.3,2577.9,4.68383]
[1751605854959,0.77552,2578.0,2577.9,4.68383]
[1751605855264,0.77552,2578.0,2577.9,3.9083]
[1751605855458,0.77552,2578.0,2577.9,4.68385]
[1751605855658,0.77552,2578.0,2577.9,3.9083]
[1751605855859,0.77552,2578.0,2577.9,4.68385]
[1751605856567,0.77552,2578.0,2577.9,3.9083]
[1751605857564,0.77552,2578.0,2577.9,3.2078]
[1751605860968,47.8023,2578.3,2578.0,0.7755]
[1751605860969,46.43,2578.3,2578.0,0.7755]
[1751605861268,0.77551,2578.1,2578.0,2.0129]
[1751605861766,0.77548,2578.2,2578.0,2.0129]
[1751605861961,35.413,2578.2,2578.1,0.77547]
[1751605862164,76.98845,2578.3,2578.1,2.11267]
[1751605862471,0.77546,2578.2,2578.1,2.11267]
[1751605863568,0.77546,2578.2,2578.1,1.3372]
[1751605864268,0.77549,2578.1,2578.0,0.6757]
[1751605865665,0.77552,2578.0,2577.9,3.2078]
[1751605865870,1.41302,2578.0,2577.9,3.2078]
[1751605868069,4.06193478,2578.0,2577.9,3.2078]
[1751605868266,4.06193478,2578.0,2577.6,3.2078]
[1751605868267,0.77562,2577.7,2577.6,3.2078]
[1751605869666,0.77562,2577.7,2577.6,4.5186]
[1751605872073,0.77562,2577.7,2577.6,3.2078]
[1751605872262,0.77562,2577.7,2577.2,6.29670944]
[1751605872263,3.29321478,2577.7,2577.2,6.29670944]
[1751605872571,0.77573,2577.3,2577.2,3.2078]
[1751605872773,0.77573,2577.3,2577.2,4.63976]
[1751605873873,0.77573,2577.3,2577.2,3.864]
[1751605874063,12.79605478,2577.3,2576.8,3.08890944]
[1751605874269,2.64891478,2576.9,2576.4,3.2078]
[1751605874463,0.77597,2576.5,2576.4,3.2078]
[1751605874769,2.64891478,2576.7,2576.4,3.2078]
[1751605874970,0.77585,2577.0,2576.7,0.7759]
[1751605875274,0.6374,2577.2,2576.8,4.08068478]
[1751605875474,76.9928,2577.1,2576.8,4.65301478]
[1751605875770,76.217,2577.1,2577.0,3.2078]
[1751605875974,36.19281,2577.1,2576.9,2.12404]
[1751605876374,0.77582,2577.0,2576.9,1.3482]
[1751605876574,0.77585,2576.9,2576.8,0.6559]
[1751605876777,0.77584,2577.0,2576.8,0.6559]
[1751605876969,44.09271478,2577.3,2576.8,0.6559]
[1751605877169,35.439,2577.2,2576.9,2.12404]
[1751605877374,36.21479,2577.2,2577.0,2.12402]
[1751605878074,0.77578,2577.2,2577.0,1.3482]
[1751605878276,36.21978,2577.2,2577.0,2.12401]
[1751605878471,0.77578,2577.2,2577.1,0.77579]
[1751605878772,0.77579,2577.1,2577.0,1.3482]
[1751605879377,0.77579,2577.1,2577.0,2.12401]
[1751605879578,0.77579,2577.1,2577.0,1.3482]
[1751605879979,0.77585,2576.9,2576.8,0.6559]
[1751605880975,0.77588,2576.8,2576.7,3.2078]
[1751605881375,0.77603,2576.3,2576.2,3.2078]
[1751605881682,0.77603,2576.3,2576.2,3.8747]
[1751605881881,0.77603,2576.3,2576.2,5.265]
[1751605882383,0.77601,2576.4,2576.2,6.04106]
[1751605882682,35.438,2576.5,2576.2,6.04106]
[1751605882981,0.77601,2576.4,2576.2,6.04106]
[1751605883878,35.438,2576.5,2576.2,7.91391478]
[1751605884182,35.438,2576.5,2576.4,0.776]
[1751605884379,35.453,2576.7,2576.6,0.77593]
[1751605884584,36.2299,2576.8,2576.6,3.42484478]
[1751605884778,1.41916,2576.9,2576.7,2.14559]
[1751605885081,36.87316,2576.9,2576.7,2.83039]
[1751605886382,0.77588,2576.8,2576.7,2.83039]
[1751605886584,36.87318,2576.9,2576.7,2.83039]
[1751605887088,0.77588,2576.8,2576.7,2.83039]
[1751605888589,36.87318,2576.9,2576.7,2.83039]
[1751605888785,0.77588,2576.8,2576.7,0.6848]
[1751605889276,0.77588,2576.8,2576.7,1.46071]
[1751605889482,36.87318,2576.9,2576.7,1.46071]
[1751605889986,0.77588,2576.8,2576.7,0.6848]
[1751605890189,0.77588,2576.8,2576.7,1.46071]
[1751605890678,36.0973,2576.9,2576.8,0.77588]
[1751605890679,36.87317,2576.9,2576.8,0.77588]
[1751605890880,36.87317,2576.9,2576.7,1.4607]
[1751605891084,36.87317,2576.9,2576.8,0.77588]
[1751605891886,36.87317,2576.9,2576.7,1.4607]
[1751605893286,36.87315,2576.9,2576.8,0.77588]
[1751605893590,36.0973,2576.9,2576.8,0.77588]
[1751605893982,36.87315,2576.9,2576.8,0.77588]
[1751605895888,0.77588,2576.8,2576.7,1.46069]
[1751605896089,36.87317,2576.9,2576.8,0.77588]
[1751605898288,0.6433,2576.9,2576.8,0.77588]
[1751605898491,36.0693,2576.9,2576.8,0.77588]
[1751605898685,0.6433,2576.9,2576.8,0.77588]
[1751605898988,36.0693,2576.9,2576.8,0.77588]
[1751605899383,36.84515,2576.9,2576.8,0.77588]
[1751605900883,36.0693,2576.9,2576.8,0.77588]
[1751605901386,36.84515,2576.9,2576.8,0.77588]
[1751605902987,36.20185,2576.9,2576.8,0.77588]
[1751605903186,36.20185,2576.9,2576.8,2.12108]
[1751605903386,35.426,2576.9,2576.8,2.12108]
[1751605903890,36.20185,2576.9,2576.8,2.12108]
[1751605906097,36.20185,2576.9,2576.8,0.77588]
[1751605906786,0.77585,2576.9,2576.8,0.77588]
[1751605906992,11.75184,2577.0,2576.9,0.77585]
[1751605907297,0.77584,2577.0,2576.9,0.77585]
[1751605907497,35.425,2577.0,2576.9,0.77585]
[1751605907696,36.20082,2577.0,2576.9,0.77585]
[1751605908004,35.425,2577.0,2576.9,0.77585]
[1751605908195,35.425,2577.0,2576.8,0.77587]
[1751605908497,0.77588,2576.9,2576.8,0.77587]
[1751605908800,35.425,2577.0,2576.9,0.77585]
[1751605909296,36.20082,2577.0,2576.9,0.77585]
[1751605909495,0.77585,2576.9,2576.8,2.12296]
[1751605909897,36.20084,2577.0,2576.9,0.77585]
[1751605912997,0.77585,2576.9,2576.8,2.12297]
[1751605913198,0.77585,2576.9,2576.8,0.77587]
[1751605913800,36.19985,2576.9,2576.8,0.77587]
[1751605915096,36.19985,2576.9,2576.8,2.08837]
[1751605915506,35.424,2576.9,2576.8,2.08837]
[1751605916200,36.19883,2577.0,2576.9,0.77585]
[1751605916397,36.19883,2577.0,2576.9,2.08835]
[1751605916706,0.77583,2577.0,2576.9,2.08835]
[1751605916901,36.19883,2577.0,2576.9,2.08835]
[1751605917800,35.423,2577.0,2576.9,2.08835]
[1751605917995,1.43951,2577.1,2577.0,0.77582]
[1751605918196,47.17578,2577.2,2577.1,0.77579]
[1751605918398,47.380083,2577.2,2577.1,0.77579]
[1751605918599,11.957083,2577.2,2577.1,3.42470478]
[1751605918799,10.977,2577.2,2577.1,4.73150478]
[1751605919598,10.977,2577.2,2577.1,7.82041422]
[1751605919803,1.47782,2577.4,2577.3,0.77573]
[1751605920198,36.89782,2577.4,2577.3,0.77573]
[1751605920999,0.7021,2577.4,2577.3,0.77573]
[1751605921199,0.77567,2577.6,2577.5,0.77567]
[1751605921407,37.81931199,2577.6,2577.5,0.77567]
[1751605921707,36.83967,2577.6,2577.5,0.77567]
[1751605922897,0.77567,2577.5,2577.4,1.46209]
[1751605923403,0.77567,2577.5,2577.4,0.6864]
[1751605924294,36.064,2577.6,2577.3,0.77572]
[1751605924295,0.7757,2577.4,2577.3,0.77572]
[1751605926507,36.19069,2577.5,2577.4,0.77569]
[1751605927206,0.77572,2577.4,2577.3,0.77571]
[1751605927407,0.77576,2577.2,2577.1,0.77579]
[1751605928302,0.77582,2577.1,2577.0,0.7758]
[1751605929007,0.77578,2577.2,2577.1,0.77577]
[1751605930108,0.77578,2577.2,2577.1,3.98357]
[1751605931107,0.77578,2577.2,2577.1,3.2078]
[1751605931304,3.42469478,2577.2,2577.1,3.2078]
[1751605931500,3.42469478,2577.2,2576.8,3.08890944]
[1751605931501,0.77585,2576.9,2576.8,3.98368]
[1751605932202,1.44465,2576.9,2576.8,3.98368]
[1751605933503,0.6688,2576.9,2576.8,3.98368]
[1751605933906,1.44465,2576.9,2576.8,3.98368]
[1751605934310,1.44465,2576.9,2576.8,0.77588]
[1751605936006,0.6688,2576.9,2576.8,0.77588]
[1751605936413,1.44465,2576.9,2576.8,0.77588]
[1751605939517,0.6688,2576.9,2576.8,0.77588]
[1751605940217,1.44465,2576.9,2576.8,0.77588]
[1751605941519,0.6688,2576.9,2576.8,0.77588]
[1751605941719,1.44465,2576.9,2576.8,0.77588]
[1751605942114,0.7759,2576.8,2576.7,0.7759]
[1751605942417,0.6688,2576.9,2576.8,0.77588]
[1751605943623,1.44465,2576.9,2576.8,0.77588]
[1751605943822,0.6688,2576.9,2576.8,0.77588]
[1751605946327,1.44465,2576.9,2576.8,0.77588]
[1751605946527,0.7759,2576.8,2576.7,0.77589]
[1751605948328,1.44467,2576.9,2576.8,0.77588]
[1751605954834,0.6688,2576.9,2576.8,0.77588]
[1751605957337,11.74979,2577.2,2576.6,10.26205944]
[1751605957534,11.74979,2577.2,2577.1,0.77579]
[1751605958437,12.72728147,2577.2,2577.1,0.77579]
[1751605958737,13.37728147,2577.2,2577.1,0.77579]
[1751605960526,1.62749147,2577.2,2577.1,0.77579]
[1751605961035,0.65,2577.2,2577.1,0.77579]
[1751605961835,1.42576,2577.2,2577.1,0.77579]
[1751605965240,0.65,2577.2,2577.1,0.77579]
[1751605967345,1.42576,2577.2,2577.1,0.77579]
[1751605968141,0.65,2577.2,2577.1,0.77579]
[1751605968642,36.81345,2577.3,2577.2,0.77576]
[1751605971040,47.8435,2577.4,2577.3,0.77573]
[1751605971241,12.4485,2577.4,2577.3,0.77573]
[1751605971446,47.8435,2577.4,2577.3,0.77573]
[1751605971844,12.4485,2577.4,2577.3,0.77573]
[1751605974545,12.4485,2577.4,2577.2,0.6348]
[1751605974749,0.77573,2577.3,2577.2,1.41055]
[1751605975844,2.64891478,2577.3,2576.9,6.29670944]
[1751605976044,0.77576,2577.3,2577.2,0.77576]
[1751605976444,11.6728,2577.4,2577.3,0.77573]
[1751605976642,0.77565,2577.6,2577.5,0.77567]
[1751605976954,36.16665,2577.6,2577.5,0.77567]
[1751605978148,36.16665,2577.6,2577.2,3.98354]
[1751605978149,0.77573,2577.3,2577.2,3.98354]
[1751605978352,0.77576,2577.3,2577.2,0.77575]
[1751605978853,4.6124,2577.7,2577.2,2.64891478]
[1751605979052,36.16566,2577.6,2577.5,0.77566]
[1751605979254,0.77569,2577.5,2577.4,0.77568]
[1751605980753,0.7757,2577.4,2577.3,2.78901]
[1751605982654,0.7757,2577.4,2577.3,0.7014]
[1751605983156,0.77573,2577.3,2577.2,0.77575]
[1751605983355,1.43683,2577.3,2577.2,0.77575]
[1751605983554,0.77576,2577.2,2577.1,3.89]
[1751605984057,0.77576,2577.2,2577.1,4.66579]
[1751605986058,0.77576,2577.2,2577.1,1.45799]
[1751605987962,0.6611,2577.3,2577.2,0.77576]
[1751605988162,1.43683,2577.3,2577.2,3.42467478]
[1751605988564,0.6611,2577.3,2577.2,3.42467478]
[1751605988762,0.6611,2577.3,2577.2,4.69477478]
[1751605989458,1.43683,2577.3,2577.2,4.69477478]
[1751605990264,0.6611,2577.3,2577.2,4.69477478]
[1751605990465,1.43683,2577.3,2577.2,4.69477478]
[1751605991054,0.77572,2577.4,2577.3,0.77573]
[1751605991258,1.4178,2577.5,2577.4,0.7757]
[1751605991660,0.7757,2577.4,2577.3,2.10161]
[1751605992566,0.7757,2577.4,2577.3,2.10162]
[1751605995862,0.7757,2577.4,2577.3,2.10163]
[1751605997070,0.7757,2577.4,2577.3,0.77573]
[1751605998166,0.77574,2577.3,2577.2,0.77574]
[1751606001676,0.77574,2577.3,2577.2,3.98354]
[1751606002074,0.77574,2577.3,2577.2,3.2078]
[1751606002573,0.77574,2577.3,2577.2,3.98356]
[1751606002773,0.77572,2577.4,2577.3,0.77573]
[1751606003075,0.77574,2577.3,2577.2,0.77574]
[1751606004673,0.77576,2577.2,2577.1,4.54688944]
[1751606004873,1.41276,2577.2,2577.1,4.54688944]
[1751606005878,0.637,2577.2,2577.1,4.54688944]
[1751606009180,1.41276,2577.2,2577.1,4.54688944]
[1751606009384,0.637,2577.2,2577.1,4.54688944]
[1751606009678,4.06167478,2577.2,2577.1,3.08890944]
[1751606009984,0.77579,2577.1,2577.0,3.08890944]
[1751606010179,0.77582,2577.0,2576.9,3.2078]
[1751606010482,1.41982,2577.1,2576.9,3.2078]
[1751606010881,0.77582,2577.0,2576.9,3.2078]
[1751606015086,0.77588,2576.8,2576.7,4.54839944]
[1751606015286,0.77588,2576.8,2576.7,7.75619944]
[1751606015487,0.77588,2576.8,2576.7,6.98030944]
[1751606015683,0.77588,2576.8,2576.7,8.38570944]
[1751606019090,0.77588,2576.8,2576.7,9.16161944]
[1751606019891,0.77588,2576.8,2576.7,11.28172933]
[1751606021292,0.77588,2576.8,2576.7,10.50581933]
[1751606021799,0.77588,2576.8,2576.7,8.38570944]
[1751606021987,0.77588,2576.8,2576.7,9.16161944]
[1751606022693,0.77588,2576.8,2576.7,8.38570944]
[1751606022887,0.77588,2576.8,2576.7,5.2968]
[1751606023692,0.6595,2576.9,2576.8,0.77588]
[1751606023893,0.77588,2576.8,2576.7,6.0727]
[1751606024892,0.77588,2576.8,2576.7,5.2968]
[1751606025393,0.77588,2576.8,2576.7,6.07271]
[1751606025588,0.77588,2576.8,2576.7,5.2968]
[1751606028099,0.77588,2576.8,2576.7,3.8914]
[1751606029702,0.77588,2576.8,2576.7,0.6836]
[1751606031796,1.93972,2576.8,2576.4,6.29670944]
[1751606032003,0.77597,2576.5,2576.4,7.76250944]
[1751606032203,0.77597,2576.5,2576.4,6.98650944]
[1751606032700,0.77596,2576.6,2576.5,0.77597]
[1751606033001,0.77596,2576.6,2576.5,7.88351633]
[1751606033197,0.77593,2576.7,2576.6,0.77592]
[1751606033397,0.77593,2576.7,2576.6,2.81752]
[1751606034502,3.2078,2577.1,2576.7,0.7759]
[1751606034503,0.77591,2576.8,2576.7,0.7759]
[1751606034703,0.77591,2576.8,2576.7,4.69164037]
[1751606037606,0.77591,2576.8,2576.7,2.0415]
[1751606039004,0.77591,2576.8,2576.7,0.6898]
[1751606041606,0.77591,2576.8,2576.7,1.46571]
[1751606042503,0.77591,2576.8,2576.7,2.77981]
[1751606042806,0.77591,2576.8,2576.7,2.0039]
[1751606043307,0.77591,2576.8,2576.7,2.77981]
[1751606043609,0.77591,2576.8,2576.7,2.0039]
[1751606045308,0.77591,2576.8,2576.7,2.77981]
[1751606045509,0.77591,2576.8,2576.7,2.0039]
[1751606051815,0.77591,2576.8,2576.7,0.6898]
[1751606055610,0.77591,2576.8,2576.7,1.9853]
[1751606058820,0.77591,2576.8,2576.7,2.76121]
[1751606059219,0.77591,2576.8,2576.7,1.9853]
[1751606060120,0.77591,2576.8,2576.7,2.76121]
[1751606061021,0.77591,2576.8,2576.7,1.9853]
[1751606063123,0.77591,2576.8,2576.7,2.76121]
[1751606064224,0.6993,2576.9,2576.8,0.77588]
[1751606064525,0.77585,2576.9,2576.8,4.2514445]
[1751606065219,3.908,2577.2,2576.8,3.4755645]
[1751606065425,0.77582,2577.1,2577.0,2.1202645]
[1751606065625,0.77582,2577.1,2577.0,4.2513845]
[1751606065825,0.77582,2577.1,2577.0,1.9914]
[1751606066122,1.47597,2577.2,2577.1,0.77579]
[1751606066329,0.6555,2577.3,2577.2,0.77576]
[1751606067122,0.77573,2577.4,2577.3,0.77572]
[1751606067323,0.77573,2577.4,2577.3,0.6361]
[1751606067523,0.77573,2577.4,2577.3,1.41183]
[1751606067724,11.73069,2577.5,2577.4,0.7757]
[1751606068424,0.7757,2577.4,2577.3,2.80211]
[1751606068625,11.73069,2577.5,2577.4,0.7757]
[1751606068825,0.7757,2577.4,2577.3,2.80212]
[1751606070034,11.73069,2577.5,2577.4,0.7757]
[1751606070223,11.73069,2577.5,2577.4,2.166]
[1751606070927,11.73069,2577.5,2577.4,1.3903]
[1751606072527,11.73069,2577.5,2577.4,2.166]
[1751606073537,11.73067,2577.5,2577.4,2.166]
[1751606074634,10.955,2577.5,2577.4,2.166]
[1751606074839,10.955,2577.5,2577.4,4.81560722]
[1751606075333,0.77563,2577.7,2577.6,0.77564]
[1751606075536,0.77565,2577.6,2577.5,0.77565]
[1751606076342,0.77567,2577.5,2577.4,4.5981]
[1751606076641,0.77567,2577.5,2577.4,3.9835]
[1751606076940,3.42527722,2577.5,2577.4,3.2078]
[1751606078036,5.45457722,2577.5,2577.4,3.2078]
[1751606082843,0.77576,2577.2,2577.1,0.77578]
[1751606083144,0.77576,2577.2,2577.1,3.98358]
[1751606083443,0.77576,2577.2,2577.1,3.2078]
[1751606085045,1.42436,2577.2,2577.1,3.2078]
[1751606088250,1.42436,2577.2,2577.1,3.8427]
[1751606091953,1.42436,2577.2,2577.1,0.6349]
[1751606097758,3.54428271,2577.2,2577.1,0.6349]
[1751606100761,0.77588,2576.8,2576.7,6.30640596]
[1751606100956,2.89578271,2576.9,2576.7,6.30640596]
[1751606101162,0.77586,2576.9,2576.7,7.08229596]
[1751606101358,0.77586,2576.9,2576.7,8.36589596]
[1751606101560,0.77586,2576.9,2576.7,5.26729]
[1751606101961,0.77586,2576.9,2576.8,1.2836]
[1751606102462,0.77582,2577.1,2576.8,3.40352271]
[1751606102666,0.77582,2577.1,2577.0,2.11992271]
[1751606103159,0.77582,2577.1,2577.0,3.40352271]
[1751606104259,0.77582,2577.1,2577.0,1.2836]
[1751606105762,36.09779,2577.2,2577.0,2.05942]
[1751606105961,0.77579,2577.1,2577.0,1.2836]
[1751606106964,0.77579,2577.1,2577.0,2.05942]
[1751606107165,35.322,2577.2,2577.1,0.77579]
[1751606107362,36.09776,2577.2,2577.1,1.3192]
[1751606109870,36.09776,2577.2,2576.9,2.16573]
[1751606109871,0.77582,2577.0,2576.9,0.7023]
[1751606110064,2.89574271,2577.0,2576.9,0.7023]
[1751606110570,0.77585,2576.9,2576.8,3.09860596]
[1751606110770,0.77588,2576.8,2576.7,6.98530596]
[1751606110971,2.89580271,2576.8,2576.7,6.30640596]
[1751606111164,2.89580271,2576.8,2576.7,3.2078]
[1751606111770,0.77588,2576.8,2576.7,3.2078]
[1751606112366,0.6634,2576.9,2576.7,3.9837]
[1751606112573,0.77588,2576.8,2576.7,3.2078]
[1751606112966,0.77591,2576.7,2576.6,3.87453596]
[1751606113268,0.77589,2576.8,2576.6,3.09860596]
[1751606113570,0.77591,2576.7,2576.6,5.15582596]
[1751606113772,0.77591,2576.7,2576.6,2.05722]
[1751606114169,0.6634,2576.9,2576.6,2.05722]
[1751606114170,0.6634,2576.9,2576.6,1.2813]
[1751606114372,1.43926,2576.9,2576.6,1.2813]
[1751606114567,0.77589,2576.8,2576.7,0.77589]
[1751606114869,0.77588,2576.9,2576.7,0.77589]
[1751606115068,0.77588,2576.9,2576.8,1.2813]
[1751606116570,4.64428,2577.2,2576.8,1.2813]
[1751606116778,0.77578,2577.2,2577.1,0.77579]
[1751606117276,0.77578,2577.2,2577.0,0.7758]
[1751606117464,0.77579,2577.1,2577.0,2.0705]
[1751606117666,0.77576,2577.3,2577.1,0.77578]
[1751606117874,0.77576,2577.2,2577.1,1.2947]